bitfinex/quotes_ETHUSD_20241120
["timestamp","ask_amount","ask_price","bid_price","bid_amount"]
[1732086642977,3.22348,3102.3,3102.0,0.07103651]
[1732086643114,3.22348,3102.3,3101.7,3.22397]
[1732086643320,3.22348,3102.3,3102.1,0.07092113]
[1732086643520,3.22348,3102.3,3101.7,3.22397]
[1732086643822,3.22348,3102.3,3101.7,6.44792]
[1732086644023,3.22348,3102.3,3101.8,0.07100389]
[1732086644249,3.22348,3102.3,3101.7,6.44792]
[1732086644447,3.22348,3102.3,3101.8,0.71579589]
[1732086646148,0.7776,3102.4,3101.8,0.71579589]
[1732086646347,3.22323,3102.5,3101.9,4.01884]
[1732086646569,6.44652,3102.5,3101.9,4.01884]
[1732086646768,6.44652,3102.5,3102.0,0.07093947]
[1732086647068,3.22333,3102.4,3102.0,0.07093947]
[1732086647223,4.00063,3102.7,3102.1,3.22354]
[1732086647430,4.00063,3102.7,3102.2,0.40040189]
[1732086648539,7.20041,3102.9,3102.3,0.7951]
[1732086648745,3.22291,3102.8,3102.3,4.0185]
[1732086648959,3.22291,3102.8,3102.4,0.07089104]
[1732086649140,3.2,3102.9,3102.4,3.29419104]
[1732086649335,3.2,3102.9,3102.4,4.05840494]
[1732086649534,3.2,3102.9,3102.4,3.29419104]
[1732086650033,3.2228,3102.9,3102.4,0.07089104]
[1732086650846,3.2228,3102.9,3102.4,3.29418104]
[1732086651043,3.22262,3103.1,3102.4,3.29418104]
[1732086651271,3.22271,3103.0,3102.4,4.12285628]
[1732086651570,3.22262,3103.1,3102.4,0.07089104]
[1732086651571,3.22311,3102.6,3102.4,0.07089104]
[1732086651772,6.44637,3102.6,3102.4,0.07089104]
[1732086652171,3.22331,3102.4,3102.1,0.7951]
[1732086652372,3.22272,3103.0,3102.5,0.07085142]
[1732086652373,3.22293,3102.8,3102.5,0.07085142]
[1732086652586,3.22338,3102.4,3102.1,0.7951]
[1732086655042,6.44629,3102.6,3102.1,0.7951]
[1732086655244,3.2231,3102.6,3102.1,0.7951]
[1732086655985,3.2231,3102.6,3102.1,4.01872]
[1732086656279,0.7776,3102.7,3102.1,4.42696865]
[1732086656445,3.223,3102.7,3102.1,4.42696865]
[1732086656648,3.22313,3102.6,3102.1,1.20341865]
[1732086656843,3.22332,3102.4,3101.7,3.22399]
[1732086657047,3.22332,3102.4,3101.6,2.91683325]
[1732086657048,4.00095,3102.4,3101.8,0.7951]
[1732086657243,3.22369,3102.1,3101.6,0.7951]
[1732086657669,3.22379,3102.0,3101.6,0.7951]
[1732086657887,3.22356,3102.2,3101.6,4.01922]
[1732086658385,3.22356,3102.2,3101.6,4.01918]
[1732086658587,3.22356,3102.2,3101.7,3.22403]
[1732086658791,7.00097,3102.4,3101.8,3.22392]
[1732086659086,3.22342,3102.3,3101.8,3.22392]
[1732086660446,3.7776,3102.4,3101.8,3.22392]
[1732086660654,7.00093,3102.4,3101.8,3.22392]
[1732086660881,3.22342,3102.3,3101.8,3.22392]
[1732086662984,3.22352,3102.2,3101.6,1.197018]
[1732086663189,3.22352,3102.2,3101.6,4.01924]
[1732086663397,4.00099,3102.4,3101.6,4.01924]
[1732086663722,4.00099,3102.4,3101.8,3.22393]
[1732086664292,4.00099,3102.4,3101.8,3.22386]
[1732086665362,7.22372,3102.7,3102.1,3.22362]
[1732086665599,4.00064,3102.7,3102.1,3.22362]
[1732086665806,3.22304,3102.7,3102.2,3.2235]
[1732086666102,3.22304,3102.7,3101.9,0.7951]
[1732086666313,3.22304,3102.7,3102.1,3.2236]
[1732086667103,3.22304,3102.7,3102.2,0.0708831]
[1732086668771,3.22304,3102.7,3102.2,3.2943231]
[1732086668965,4.00043,3102.9,3102.3,4.0185]
[1732086669267,4.00043,3102.9,3102.4,0.07082794]
[1732086670465,3.77264,3103.1,3102.5,3.2232]
[1732086670708,3.77264,3103.1,3102.6,0.07065271]
[1732086670865,3.22284,3102.9,3102.3,7.24173]
[1732086671068,3.22284,3102.9,3102.4,3.29399786]
[1732086672109,3.22284,3102.9,3102.4,0.07070786]
[1732086672271,3.22284,3102.9,3102.4,3.29399786]
[1732086672668,4.231094,3103.1,3102.4,3.29399786]
[1732086672904,3.22284,3102.9,3102.4,3.29399786]
[1732086674509,3.2229,3102.8,3102.4,0.07070786]
[1732086674897,6.4457,3102.9,3102.4,0.07070786]
[1732086675109,3.22306,3102.7,3102.4,0.07070786]
[1732086675314,4.0351,3102.6,3102.4,0.07070786]
[1732086675481,0.8119,3102.6,3102.1,3.22361]
[1732086675679,0.8119,3102.6,3102.2,0.07075864]
[1732086675879,0.8119,3102.6,3102.2,3.29426864]
[1732086676578,0.8119,3102.6,3102.2,0.07075864]
[1732086676992,3.22306,3102.7,3102.2,3.29426864]
[1732086678774,3.22306,3102.7,3102.2,0.07075864]
[1732086678993,3.22328,3102.5,3102.2,0.07075864]
[1732086679220,3.22328,3102.5,3102.0,0.8199]
[1732086679426,3.22328,3102.5,3102.3,0.07058189]
[1732086679575,3.22328,3102.5,3102.0,4.04362]
[1732086679776,3.22328,3102.5,3102.4,0.07055431]
[1732086680288,3.22328,3102.5,3102.0,4.04362]
[1732086680484,3.22328,3102.5,3102.1,0.07063705]
[1732086682021,3.22183,3103.9,3102.1,0.07063705]
[1732086682022,3.22348,3102.3,3102.1,0.07063705]
[1732086682178,3.22351,3102.2,3102.1,0.07063705]
[1732086682381,3.22351,3102.2,3101.7,3.99513]
[1732086682588,3.22351,3102.2,3102.1,0.07063641]
[1732086682797,3.22351,3102.2,3101.7,3.99513]
[1732086683300,3.22351,3102.2,3101.8,0.0707284]
[1732086683508,6.4471,3102.2,3101.7,0.7711]
[1732086683742,6.4471,3102.2,3101.8,0.0707284]
[1732086684029,0.8326,3102.3,3101.5,0.7711]
[1732086684236,3.2238,3102.0,3101.9,0.07070081]
[1732086684407,3.2238,3102.0,3101.5,0.7711]
[1732086684741,3.2238,3102.0,3101.5,1.493082]
[1732086684907,5.91683325,3102.8,3100.6,2.02711172]
[1732086684908,0.8326,3101.9,3101.6,0.07078358]
[1732086685232,0.8326,3101.9,3100.9,0.7697]
[1732086685233,3.22442,3101.4,3100.9,0.7697]
[1732086685386,0.8317,3101.4,3100.5,3.22519]
[1732086685592,3.22465,3101.2,3100.6,1.16149132]
[1732086685833,3.22465,3101.2,3100.6,0.7697]
[1732086686029,3.22479,3101.0,3100.6,0.7697]
[1732086686917,3.22467,3101.1,3100.6,0.7697]
[1732086687122,3.22467,3101.1,3100.6,1.23846932]
[1732086689008,3.22477,3101.0,3100.6,1.23846932]
[1732086689219,3.22468,3101.1,3100.6,0.7697]
[1732086690440,3.22468,3101.1,3100.6,3.99486]
[1732086690610,3.22468,3101.1,3100.6,5.08614032]
[1732086692252,0.8317,3101.2,3100.6,5.08614032]
[1732086692409,0.8317,3101.2,3100.8,3.22489]
[1732086692612,3.22439,3101.4,3100.8,3.22489]
[1732086693046,3.22445,3101.3,3100.6,5.08614032]
[1732086693354,3.22457,3101.2,3100.6,5.08614032]
[1732086693536,3.22457,3101.2,3100.7,3.22506]
[1732086693889,3.22464,3101.2,3100.6,3.99486]
[1732086694899,3.22464,3101.2,3100.7,3.22507]
[1732086695052,3.22464,3101.2,3100.6,3.99486]
[1732086695365,3.22464,3101.2,3100.6,4.394286]
[1732086695568,0.55,3101.4,3100.6,4.394286]
[1732086695984,3.22447,3101.3,3100.8,3.22496]
[1732086696251,3.22457,3101.2,3100.6,4.394286]
[1732086696672,3.22457,3101.2,3100.6,7.619386]
[1732086697003,3.77445,3101.4,3100.7,3.22499]
[1732086697302,4.05602,3101.5,3100.9,3.22486]
[1732086697468,3.22414,3101.6,3101.0,4.06308778]
[1732086697791,3.22414,3101.6,3101.0,0.83838778]
[1732086698156,0.8317,3101.7,3101.2,3.22449]
[1732086698353,0.8317,3101.7,3101.1,0.0688268]
[1732086698556,4.0558,3101.7,3101.1,3.2934068]
[1732086699371,4.0558,3101.7,3101.1,4.06283296]
[1732086699558,4.0558,3101.7,3101.2,3.22454]
[1732086699898,4.0558,3101.7,3101.3,0.06879011]
[1732086700063,4.0558,3101.7,3101.2,3.22454]
[1732086700264,4.0558,3101.7,3101.3,0.06879011]
[1732086700598,0.8317,3101.7,3101.2,3.22454]
[1732086700769,0.8317,3101.7,3101.4,0.06876251]
[1732086700970,0.8317,3101.7,3101.2,3.22454]
[1732086701171,0.8317,3101.7,3101.5,0.06874417]
[1732086701408,0.8317,3101.7,3101.3,3.22441]
[1732086701577,0.8317,3101.7,3101.6,0.06867955]
[1732086701766,0.8317,3101.7,3101.3,3.22441]
[1732086701963,0.8317,3101.7,3101.4,0.06873381]
[1732086705902,6.44759,3102.0,3101.4,3.29305381]
[1732086706101,7.24339,3102.0,3101.4,3.29305381]
[1732086706501,4.01958,3102.0,3101.4,3.29305381]
[1732086706871,4.01958,3102.0,3101.2,3.22453]
[1732086707071,3.2239,3101.9,3101.3,3.29321999]
[1732086708170,4.01958,3102.0,3101.3,0.06876999]
[1732086708371,3.224,3101.8,3101.2,3.22454]
[1732086708603,3.224,3101.8,3101.3,0.06876999]
[1732086709063,3.224,3101.8,3101.2,3.22448]
[1732086709265,3.224,3101.8,3101.4,0.06874239]
[1732086709471,3.224,3101.8,3101.2,3.22448]
[1732086709472,3.224,3101.8,3101.3,0.06876999]
[1732086709771,3.224,3101.8,3101.4,0.06874239]
[1732086709934,3.224,3101.8,3101.2,3.22448]
[1732086710142,3.224,3101.8,3101.3,0.06876999]
[1732086710322,3.224,3101.8,3101.2,3.22448]
[1732086710526,3.224,3101.8,3101.3,0.06876999]
[1732086710723,3.224,3101.8,3101.3,3.22444]
[1732086710948,3.224,3101.8,3101.4,0.06874239]
[1732086711375,4.01958,3102.0,3101.4,3.29301239]
[1732086711674,4.01958,3102.0,3101.4,4.11261239]
[1732086712369,0.55,3102.3,3101.4,2.64543138]
[1732086712577,3.22358,3102.2,3101.6,3.22414]
[1732086712745,3.22358,3102.2,3101.7,0.06866178]
[1732086713067,3.22358,3102.2,3101.5,3.22416]
[1732086713068,0.8055,3102.1,3101.5,3.22416]
[1732086713265,0.8055,3102.1,3101.8,0.06863291]
[1732086713469,0.8055,3102.1,3101.3,3.22442]
[1732086713470,3.22383,3101.9,3101.3,3.22442]
[1732086714573,3.2238,3102.0,3101.2,0.8196]
[1732086714574,0.8055,3101.7,3101.2,0.8196]
[1732086714769,4.02961,3101.7,3101.2,0.8196]
[1732086715571,3.22423,3101.6,3100.9,3.22483]
[1732086715877,3.22423,3101.6,3101.0,3.22475]
[1732086716180,0.8055,3101.7,3101.0,3.22475]
[1732086716181,3.22426,3101.5,3101.0,3.22475]
[1732086716983,3.22426,3101.5,3100.8,0.8196]
[1732086717150,3.22435,3101.4,3100.8,4.04449]
[1732086717345,3.22435,3101.4,3100.8,4.448953]
[1732086717582,0.8055,3101.2,3100.8,1.224063]
[1732086717742,0.8055,3101.2,3100.8,4.448963]
[1732086717939,0.8055,3101.2,3100.9,0.7673993]
[1732086718546,0.8055,3101.2,3100.9,3.9922593]
[1732086718739,4.02985,3101.4,3100.9,3.9922593]
[1732086719343,0.8055,3101.4,3100.9,3.9922593]
[1732086719665,0.55,3101.8,3101.1,3.22457]
[1732086719985,3.22415,3101.6,3101.1,3.22457]
[1732086724554,3.22415,3101.6,3101.0,0.52163223]
[1732086724555,3.22425,3101.5,3101.0,0.52163223]
[1732086724884,4.02995,3101.3,3100.8,4.04455]
[1732086725868,0.8055,3101.3,3100.8,4.04455]
[1732086727179,0.8055,3101.3,3100.9,0.06656218]
[1732086729149,0.8055,3101.3,3100.9,3.29140218]
[1732086730691,0.8055,3101.3,3101.0,3.22475]
[1732086730895,0.7794,3101.9,3101.3,0.8054]
[1732086731094,4.00325,3101.9,3101.4,3.22429]
[1732086731239,4.00325,3101.9,3101.4,3.29067453]
[1732086733385,0.7794,3101.9,3101.4,4.02272798]
[1732086733590,3.0,3102.0,3101.5,3.22418]
[1732086733787,3.0,3102.0,3101.6,0.06640351]
[1732086734490,0.7794,3102.1,3101.6,0.06640351]
[1732086734645,4.00272,3102.4,3101.7,1.13445835]
[1732086734844,4.00272,3102.4,3101.8,3.22392]
[1732086735076,3.22347,3102.3,3101.8,0.06628056]
[1732086735470,3.22347,3102.3,3101.7,4.02937]
[1732086735646,3.22353,3102.2,3101.9,0.06625114]
[1732086735847,3.22353,3102.2,3101.8,0.06627873]
[1732086736146,3.22353,3102.2,3101.9,0.06625114]
[1732086736370,4.00309,3102.1,3101.5,3.22416]
[1732086736568,4.00309,3102.1,3101.6,0.06633392]
[1732086736768,4.00309,3102.1,3101.4,4.02966]
[1732086736981,3.77405,3101.7,3101.5,0.06636151]
[1732086737283,4.0036,3101.6,3101.1,0.8054]
[1732086737651,0.7794,3101.6,3101.1,4.03001]
[1732086739264,0.55,3101.7,3101.3,3.22443]
[1732086739769,0.55,3101.7,3101.1,4.82883562]
[1732086741250,3.77405,3101.7,3101.1,4.02999]
[1732086741664,0.55,3101.7,3101.1,4.02999]
[1732086741863,3.77403,3101.7,3101.1,4.02999]
[1732086742271,3.77403,3101.7,3101.2,0.06636312]
[1732086743764,3.22414,3101.6,3101.2,0.06636312]
[1732086743960,3.77426,3101.5,3101.2,0.06636312]
[1732086744201,4.55366,3101.5,3100.9,3.22485]
[1732086744402,4.55366,3101.5,3101.0,0.06641832]
[1732086746462,1.3294,3101.5,3101.0,3.29113832]
[1732086748282,1.3294,3101.5,3101.1,3.22466]
[1732086748671,1.3294,3101.5,3101.2,0.06638216]
[1732086749474,1.3294,3101.5,3101.0,3.22475]
[1732086749708,1.3294,3101.5,3101.3,0.06667373]
[1732086749923,1.3294,3101.5,3101.0,3.22475]
[1732086750069,1.3294,3101.5,3101.4,0.06668313]
[1732086750470,1.3294,3101.5,3101.2,3.22452]
[1732086750665,1.3294,3101.5,3101.4,0.06668313]
[1732086750884,1.3294,3101.5,3101.3,0.06671074]
[1732086751209,1.3294,3101.5,3101.2,3.22452]
[1732086751409,1.3294,3101.5,3101.4,0.06668658]
[1732086751622,1.3294,3101.5,3101.2,3.22452]
[1732086751916,1.3294,3101.5,3101.4,0.06668658]
[1732086752217,1.3294,3101.5,3101.4,0.06667732]
[1732086752569,1.3294,3101.5,3101.2,3.22452]
[1732086752915,1.3294,3101.5,3101.3,0.06673133]
[1732086753212,1.3294,3101.5,3101.2,3.22452]
[1732086753394,1.3294,3101.5,3101.3,0.06672139]
[1732086753608,1.3294,3101.5,3101.2,3.22452]
[1732086753901,1.3294,3101.5,3101.3,0.06672139]
[1732086754287,1.3294,3101.5,3101.2,3.22452]
[1732086754488,1.3294,3101.5,3101.4,0.06667528]
[1732086754682,1.3294,3101.5,3101.3,0.06670289]
[1732086754887,1.3294,3101.5,3101.4,0.06668385]
[1732086755520,1.3294,3101.5,3101.2,3.22452]
[1732086755676,1.3294,3101.5,3101.4,0.06668385]
[1732086756376,1.3294,3101.5,3101.2,3.22452]
[1732086756887,1.3294,3101.5,3101.3,0.06671146]
[1732086757290,2.107159,3101.5,3101.0,3.2247]
[1732086757491,2.107159,3101.5,3101.4,0.06668385]
[1732086757701,5.331409,3101.5,3101.0,3.2247]
[1732086757921,5.331409,3101.5,3101.4,0.06668385]
[1732086757922,4.55365,3101.5,3101.4,0.06668385]
[1732086758091,4.55365,3101.5,3101.0,3.2247]
[1732086758290,4.55365,3101.5,3101.1,0.06676668]
[1732086758522,0.8029,3101.2,3100.5,0.8308]
[1732086758847,0.8029,3101.2,3100.6,3.29199476]
[1732086758848,0.55,3101.1,3100.6,3.29199476]
[1732086759336,1.3302,3101.1,3100.7,3.225]
[1732086759695,1.3302,3101.1,3100.7,3.29174108]
[1732086759894,0.55,3101.1,3100.7,3.29174108]
[1732086761229,0.55,3101.1,3100.9,3.22485]
[1732086761637,0.55,3101.1,3101.0,0.06664899]
[1732086761930,0.55,3101.1,3100.7,6.45]
[1732086761931,0.55,3101.1,3100.7,3.225]
[1732086762091,0.55,3101.1,3101.0,0.06664899]
[1732086762296,0.55,3101.1,3100.7,3.225]
[1732086762490,0.55,3101.1,3100.8,0.0667046]
[1732086762736,0.55,3101.1,3100.7,3.225]
[1732086763031,0.55,3101.1,3100.9,0.06666792]
[1732086763233,0.55,3101.1,3100.8,3.29163554]
[1732086763440,0.55,3101.1,3101.0,0.06664031]
[1732086763902,0.55,3101.1,3100.8,3.22494]
[1732086764109,0.55,3101.1,3100.9,0.06666792]
[1732086764514,0.55,3101.1,3100.9,3.29152792]
[1732086764824,0.55,3101.1,3100.9,0.06666792]
[1732086765223,3.2241,3101.7,3101.1,3.2246]
[1732086765636,3.22414,3101.6,3101.2,0.06657455]
[1732086766246,0.7861,3101.4,3101.2,0.06657455]
[1732086766622,0.7861,3101.4,3101.0,3.2247]
[1732086766817,0.7861,3101.4,3101.3,0.06654695]
[1732086767030,0.7861,3101.4,3100.9,3.97826]
[1732086767248,0.7861,3101.4,3101.3,0.06654695]
[1732086767548,1.219377,3101.4,3101.3,0.06654695]
[1732086767767,1.219377,3101.4,3101.0,3.22476]
[1732086767953,1.219377,3101.4,3101.3,0.06654695]
[1732086768122,1.219377,3101.4,3101.0,3.22476]
[1732086768329,0.7861,3101.4,3101.1,0.06660216]
[1732086769326,0.7861,3101.4,3101.1,3.29118216]
[1732086769852,4.01019,3101.7,3101.2,3.22454]
[1732086770157,0.55,3101.6,3101.3,0.06654738]
[1732086770344,0.55,3101.6,3101.2,3.22454]
[1732086770720,0.7861,3101.7,3101.4,3.22427]
[1732086771056,0.7861,3101.7,3101.5,0.0665299]
[1732086771629,1.18711,3101.7,3101.2,3.22448]
[1732086771828,1.18711,3101.7,3101.6,0.06657632]
[1732086772156,1.18711,3101.7,3101.2,3.22448]
[1732086772318,1.18711,3101.7,3101.6,0.06657632]
[1732086772923,1.18711,3101.7,3101.2,3.22448]
[1732086773259,0.7861,3101.7,3101.3,3.29103914]
[1732086773551,0.7861,3101.7,3101.3,0.06665914]
[1732086773757,0.7861,3101.7,3101.2,3.22448]
[1732086774064,0.55,3101.6,3101.4,0.06663153]
[1732086774254,1.006007,3101.6,3101.3,0.06665914]
[1732086774560,0.55,3101.6,3101.4,0.06663153]
[1732086774741,0.55,3101.6,3101.2,3.22448]
[1732086774920,0.55,3101.6,3101.5,0.06660392]
[1732086775253,1.006015,3101.6,3101.2,3.22448]
[1732086775421,0.55,3101.6,3101.5,0.06661299]
[1732086775619,0.55,3101.6,3101.2,3.22448]
[1732086775844,0.55,3101.6,3101.5,0.06661299]
[1732086776033,0.55,3101.6,3101.2,3.22448]
[1732086776351,0.55,3101.6,3101.3,3.22442]
[1732086776610,0.55,3101.6,3101.4,3.22434]
[1732086776738,0.55,3101.6,3101.4,3.2909338]
[1732086777352,0.55,3101.8,3101.4,3.2909338]
[1732086777667,1.00699046,3101.8,3101.4,3.2909338]
[1732086777964,0.55,3101.8,3101.4,3.2909338]
[1732086778965,3.0,3102.2,3101.7,3.22403]
[1732086779256,3.7637,3102.2,3101.7,3.22403]
[1732086779462,3.7637,3102.2,3101.8,0.0664855]
[1732086779660,0.698716,3102.1,3101.8,0.0664855]
[1732086779865,3.7637,3102.2,3101.6,3.22407]
[1732086780035,0.7637,3102.2,3101.9,3.29026791]
[1732086780237,3.33700471,3102.5,3101.9,0.41154679]
[1732086780446,7.32393471,3102.5,3102.0,0.06643031]
[1732086780676,3.22331,3102.4,3102.0,0.06643031]
[1732086781435,0.55,3102.3,3102.0,0.06643031]
[1732086781841,0.55,3102.4,3102.0,0.06643031]
[1732086782041,0.55,3102.4,3101.9,3.22376]
[1732086782366,0.55,3102.4,3102.0,0.06642367]
[1732086783283,0.55,3102.4,3102.0,3.29013367]
[1732086783633,0.55,3102.4,3102.1,3.22362]
[1732086783864,0.55,3102.4,3102.1,3.29001608]
[1732086784265,0.55,3102.4,3102.1,0.06639608]
[1732086784696,0.55,3102.4,3102.0,3.2237]
[1732086785003,0.55,3102.4,3102.1,0.06639608]
[1732086785403,0.55,3102.4,3102.2,3.22344]
[1732086785564,0.55,3102.4,3102.2,0.06636848]
[1732086785759,0.55,3102.4,3102.1,3.22354]
[1732086785962,0.55,3102.4,3102.2,0.06645174]
[1732086786191,0.55,3102.4,3102.2,3.28996174]
[1732086786603,3.2,3102.6,3102.2,3.28996174]
[1732086786774,0.55,3102.5,3102.2,3.28996174]
[1732086787100,3.2,3102.6,3102.4,3.22322]
[1732086787302,0.7637,3103.1,3102.6,3.22306]
[1732086787511,0.398618,3103.0,3102.7,3.22298]
[1732086787804,0.7637,3103.1,3102.7,3.22298]
[1732086787805,0.7637,3103.1,3102.7,3.28926981]
[1732086788018,0.7637,3103.4,3102.8,3.22283]
[1732086788182,0.7637,3103.4,3102.8,3.28911213]
[1732086788382,1.29467746,3103.4,3102.8,3.28911213]
[1732086789082,0.7637,3103.4,3102.9,3.22272]
[1732086789301,0.55,3103.3,3102.9,3.22272]
[1732086789481,0.55,3103.3,3103.0,0.06622257]
[1732086789691,0.55,3103.3,3103.0,3.28889257]
[1732086789900,0.55,3103.3,3103.0,3.22267]
[1732086790081,0.55,3103.3,3103.1,0.06619499]
[1732086790531,3.2,3103.6,3103.2,3.22248]
[1732086790749,3.2,3103.6,3103.4,3.22218]
[1732086791018,3.98528,3104.1,3103.5,4.11327858]
[1732086791221,0.7637,3104.1,3103.6,3.22204]
[1732086791425,0.7637,3104.1,3103.6,3.28803101]
[1732086791672,0.7637,3104.1,3103.7,3.22195]
[1732086791932,1.15,3104.2,3103.8,3.22183]
[1732086792092,1.15,3104.2,3103.9,3.22168]
[1732086792294,1.15,3104.2,3104.0,3.22162]
[1732086792624,3.2,3104.6,3104.0,4.76344431]
[1732086792937,3.2,3104.6,3104.2,3.22143]
[1732086793221,3.2,3104.6,3104.3,0.06561155]
[1732086793425,3.2,3104.6,3104.2,3.22143]
[1732086793630,3.2,3104.6,3104.4,0.06558484]
[1732086793837,3.2,3104.6,3104.2,3.22143]
[1732086794138,3.2,3104.6,3104.5,0.0655573]
[1732086794423,3.2,3104.6,3104.5,0.06556584]
[1732086794589,3.2,3104.6,3104.3,3.22126]
[1732086794941,3.2,3104.6,3104.5,0.065557]
[1732086795088,3.2,3104.6,3104.4,0.06558454]
[1732086795292,3.75,3104.6,3104.5,0.065557]
[1732086795692,0.55,3104.5,3104.3,3.22126]
[1732086797414,3.2,3104.6,3104.3,3.22126]
[1732086797612,3.2,3104.6,3104.4,3.22123]
[1732086798236,3.2,3104.6,3104.4,0.644249]
[1732086798536,2.91120093,3105.5,3104.8,4.046]
[1732086798537,3.22019,3105.5,3104.8,4.046]
[1732086798684,3.22019,3105.5,3104.8,0.8252]
[1732086798886,0.398389,3105.4,3104.8,0.8252]
[1732086799321,0.398389,3105.4,3104.9,3.22064]
[1732086799626,0.55,3105.3,3104.8,0.8252]
[1732086799788,0.55,3105.3,3104.9,3.2207]
[1732086800124,0.55,3105.4,3105.0,3.2206]
[1732086800704,0.55,3105.4,3104.8,0.8252]
[1732086801315,0.55,3105.4,3104.8,4.04595]
[1732086801630,0.55,3105.4,3104.8,0.8252]
[1732086801929,3.77021,3105.4,3104.8,4.046]
[1732086802129,4.223601,3105.4,3104.8,4.046]
[1732086802328,0.55,3105.4,3104.9,3.28607934]
[1732086802526,0.55,3105.5,3105.0,3.2206]
[1732086802919,0.55,3105.5,3105.1,0.06568853]
[1732086803506,0.55,3105.5,3105.1,3.28617853]
[1732086803907,0.55,3105.5,3105.1,0.06568853]
[1732086804295,0.55,3105.5,3104.9,6.44133]
[1732086804636,0.55,3105.5,3104.9,3.22063]
[1732086804943,2.91120093,3105.4,3105.0,0.06571608]
[1732086805143,3.7705,3105.1,3105.0,0.06571608]
[1732086805287,1.3634,3105.3,3104.4,3.22116]
[1732086805288,3.22064,3105.0,3104.4,3.22116]
[1732086805824,3.77072,3104.9,3104.5,0.06580043]
[1732086805995,3.77072,3104.9,3104.3,3.22133]
[1732086806336,0.55,3104.9,3104.4,0.06581874]
[1732086806503,0.55,3104.7,3104.4,0.06581874]
[1732086806834,0.55,3104.7,3104.5,0.06375423]
[1732086806994,0.55,3104.7,3104.2,4.04164]
[1732086807194,0.55,3104.7,3104.3,0.06382887]
[1732086807532,3.77092,3104.7,3104.2,3.22144]
[1732086807739,3.22103,3104.6,3104.4,0.06378302]
[1732086807896,0.55,3104.7,3104.3,0.06381058]
[1732086808322,0.55,3104.7,3104.1,3.22152]
[1732086808634,3.22113,3104.5,3104.0,0.322161]
[1732086808933,0.55,3104.5,3104.1,0.06386376]
[1732086810031,0.55,3104.5,3104.0,3.22155]
[1732086810236,3.77122,3104.5,3104.1,0.06380831]
[1732086810535,3.77122,3104.5,3103.9,0.8202]
[1732086810536,3.22123,3104.4,3103.9,0.8202]
[1732086810699,3.22123,3104.4,3104.2,0.06378076]
[1732086810900,3.22123,3104.4,3103.9,0.8202]
[1732086811100,3.77123,3104.4,3104.3,0.06374396]
[1732086811324,0.55,3104.5,3103.9,4.04186]
[1732086811504,3.77092,3104.7,3104.1,3.22147]
[1732086811713,0.55,3104.5,3104.0,0.06382663]
[1732086811920,0.55,3104.5,3104.2,0.06376227]
[1732086812139,0.55,3104.6,3104.1,3.28532983]
[1732086812302,0.55,3104.6,3104.3,0.06373472]
[1732086812502,0.55,3104.6,3104.2,0.06376227]
[1732086812706,0.55,3104.6,3104.4,0.0637107]
[1732086812929,3.77102,3104.6,3104.3,0.06373825]
[1732086813134,3.77102,3104.6,3104.5,0.06368315]
[1732086813317,3.77102,3104.6,3104.4,0.06369222]
[1732086813605,3.77102,3104.6,3104.5,0.06362771]
[1732086813802,3.77102,3104.6,3104.1,3.22153]
[1732086814009,3.77093,3104.7,3104.2,0.06371036]
[1732086814418,3.77093,3104.7,3104.2,3.28513036]
[1732086814620,0.55,3104.7,3104.3,3.22127]
[1732086814842,0.55,3104.7,3104.4,0.87434602]
[1732086815142,3.22055,3105.1,3104.5,3.22105]
[1732086815552,3.22055,3105.1,3104.6,0.06359657]
[1732086816653,3.22055,3105.1,3104.5,3.22112]
[1732086816827,3.22055,3105.1,3104.6,0.06359657]
[1732086817027,0.7977,3105.2,3104.6,0.06359657]
[1732086817258,0.7977,3105.2,3104.7,3.22085]
[1732086817408,0.7977,3105.2,3104.8,0.06354149]
[1732086817757,4.01816,3105.2,3104.8,0.06354149]
[1732086817927,0.7977,3105.2,3104.8,0.06354149]
[1732086818129,0.7977,3105.2,3104.7,3.22089]
[1732086818329,3.75,3105.0,3104.9,0.06351394]
[1732086818528,3.75,3105.0,3104.8,0.06354149]
[1732086818840,3.75,3105.0,3104.9,0.06351394]
[1732086819016,3.75,3105.0,3104.7,3.22089]
[1732086819662,3.75,3105.0,3104.8,0.06354149]
[1732086820563,3.75,3105.0,3104.9,0.06351394]
[1732086821212,3.75,3105.0,3104.6,3.221]
[1732086821418,3.75,3105.0,3104.7,0.06356903]
[1732086821610,3.22072,3104.9,3104.4,4.03189]
[1732086821823,3.75,3105.0,3104.5,0.06362057]
[1732086822656,3.75,3105.0,3104.5,3.28474057]
[1732086825168,3.75,3105.0,3104.6,3.22092]
[1732086825456,3.75,3105.0,3104.7,0.06363809]
[1732086825842,3.2,3105.0,3104.7,0.06363809]
[1732086826042,3.2,3105.0,3104.6,3.22092]
[1732086826278,3.2,3105.0,3104.7,0.06363809]
[1732086826484,3.2,3105.0,3104.8,3.22078]
[1732086826640,3.2,3105.0,3104.9,0.063583]
[1732086829152,3.2,3105.0,3104.9,3.284293]
[1732086829653,3.2,3105.0,3104.9,0.063583]
[1732086830287,3.2,3105.0,3104.9,3.284293]
[1732086830654,3.2,3105.0,3104.9,0.063583]
[1732086831383,3.2,3105.0,3104.6,3.22102]
[1732086831691,3.2,3105.0,3104.5,4.01618]
[1732086831999,3.2,3105.0,3104.6,3.28468364]
[1732086832693,3.2,3105.0,3104.6,0.06367364]
[1732086833062,3.2,3105.0,3104.6,3.28469364]
[1732086833496,3.2,3105.0,3104.6,0.06367364]
[1732086833661,6.42065,3105.0,3104.6,0.06367364]
[1732086834163,3.22072,3104.9,3104.6,0.06367364]